[Event "Benidorm Open-A 2022"]
[Site "Benidorm"]
[Date "2022.12.09"]
[Round "8.24"]
[White "Plaskett, H James"]
[Black "Unciti Juan, Javier"]
[Result "1-0"]
[ECO "C05"]
[WhiteElo "2365"]
[BlackElo "1999"]
[Annotator "TA"]
[PlyCount "67"]
[EventDate "2022.12.03"]
[EventType "swiss"]
[EventCountry "ESP"]
[SourceTitle "playchess.com"]
[Source "ChessBase"]
[SourceQuality "1"]
[TimeControl "5400+30"]

{[%evp 13,67,2,40,0,0,0,0,0,0,0,-20,4,2,8,22,-21,-28,-30,13,-1,41,0,104,112,165,69,242,211,395,364,357,251,266,126,271,272,265,266,273,273,427,400,412,410,488,169,688,399,953,942,978,795,3842,771,29987,1073]} 1. e4 {[%cal Be2e4,Be4e5][%mdl 32]} e6 2. d4 d5 3. Nd2 Nf6 4. Bd3 c5 5. e5 Nfd7 6. c3 Nc6 7. Ngf3 f6 8. O-O {C06: French Tarrasch: 3...Nf6 4 e5 Nfd7 5 Bd3 main lines.} (8. exf6 $14 Qxf6 9. O-O) 8... fxe5 $11 9. Nxe5 Ndxe5 (9... cxd4 $2 10. Nxc6 (10. Qh5+ g6 $18) 10... bxc6 11. Qh5+ (11. cxd4 Nf6 $16) 11... Ke7 12. Nf3 $18 (12. cxd4 Nf6 $18)) 10. dxe5 {The position is equal.} Nxe5 11. Qh5+ Nf7 12. Re1 {[%cal Od2f3] [#]} (12. Bxh7 $2 g6 13. Qxg6 Qh4 $19) 12... a6 $146 ({Predecessor:} 12... g6 13. Bb5+ Ke7 14. Qh4+ g5 15. Qh5 a6 16. Ba4 b5 17. Bc2 h6 18. Nf3 Bg7 {1-0 (46) Daianu,C (2218)-Pavlov,D (2348) Chess.com INT 2020}) 13. c4 $36 {[%mdl 2048] Black is under pressure.} ({But not} 13. Bxh7 g6 14. Qxg6 Qh4 $17) 13... d4 14. f4 {[%cal Of4f5][%mdl 1024] White has compensation.} (14. Bxh7 {is interesting.} g6 15. Qxg6 Qh4 16. Rxe6+ Be7 17. Rxe7+ Kxe7 18. Qe4+) 14... g6 {Prevents f5.} 15. Qg4 Be7 16. Nf3 {[%cal Ob2b4]} Kf8 17. h4 Nh6 (17... Rg8 $11) 18. Qh3 $16 {White is more active.} e5 {Inhibits h5.} (18... Nf5 $16 {keeps fighting.}) 19. Qg3 (19. f5 $1 $18 Nxf5 20. g4) 19... Bf5 $2 (19... Nf5 $14 20. Qh2 e4 21. Bxe4 h5) 20. fxe5 $18 Bxd3 $2 (20... Kg7) 21. Bxh6+ {[%cal Bc1h6,Bh6g7,Bg7f6][%mdl 32]} Ke8 22. b3 {aiming for Ng5.} Bf5 23. Rad1 (23. e6 $18 {and the rest is easy.}) 23... Be6 (23... Qc7 $16) 24. Bg7 Rg8 25. Bf6 Qd7 26. Ng5 h6 (26... Bf8 $142 27. Ne4 Qc6) 27. Ne4 b6 28. b4 Qc6 (28... cxb4 $2 29. Nd6+ Kd8 30. Rxd4 $18) 29. bxc5 $2 (29. Nd6+ Kd7 30. Bxe7 Kxe7 31. bxc5 bxc5 32. Rb1) 29... bxc5 $2 (29... Bxc5 30. a4 Rb8) 30. Qa3 {Threatens to win with Bxe7.} Rc8 $2 {[#]} (30... Rd8 31. Bxe7 Kxe7 32. Nxc5 (32. Qxc5+ Qxc5 33. Nxc5 Bxc4 $11) 32... Kf7) 31. Rxd4 $3 {[%mdl 512]} g5 {[#]} (31... Rb8 32. Rd3) 32. Rd6 $1 {[%mdl 512]} Qa8 (32... Bxd6 33. exd6) 33. Nxc5 (33. Rxe6 $142 Rc7 34. Qf3) 33... Bxc4 34. Ne4 {Weighted Error Value: White=0.68/Black=0.99} 1-0

[Event "Benidorm Open-A 2022"]
[Site "Benidorm"]
[Date "2022.12.09"]
[Round "8.25"]
[White "Horcajada Reales, Guillermo"]
[Black "Kocak, Ediz"]
[Result "1-0"]
[ECO "D31"]
[WhiteElo "2081"]
[BlackElo "2115"]
[Annotator "TA"]
[PlyCount "87"]
[EventDate "2022.12.03"]
[EventType "swiss"]
[EventCountry "ESP"]
[SourceTitle "playchess.com"]
[Source "ChessBase"]
[SourceQuality "1"]
[TimeControl "5400+30"]

{[%evp 14,86,2,12,8,0,0,0,4,-6,0,-4,0,-48,-17,-71,-67,-70,-72,-69,-59,-49,-55,-62,-61,-64,-70,-137,-152,-123,-127,-159,-139,-138,-126,-144,-68,-73,-49,-235,-219,-396,-345,-322,-96,-107,-62,-60,0,-84,-58,-193,-196,-404,-121,-177,-166,-343,0,0,0,-251,584,562,5547,5222,2347,1245,29996,29997,29997,29998,29998,29999,29999]} 1. c4 e6 2. Nc3 d5 3. d4 Be7 4. Nf3 Nf6 5. g3 dxc4 6. Qa4+ Nbd7 7. Bg2 a6 8. Ne5 O-O {E02: Open Catalan: 5 Qa4+.} 9. Qxc4 Nxe5 10. dxe5 Nd7 {The position is equal.} 11. f4 {[#]} c5 $146 ({Predecessor:} 11... Rb8 12. a4 c5 13. Be3 Qc7 14. O-O b6 15. Rfd1 Bb7 16. Be4 Bxe4 17. Nxe4 b5 18. axb5 axb5 {½-½ (47) Kareva,N (2135)-Butkiewicz,L (2436) Wroclaw 2019}) 12. Be3 Qc7 13. O-O-O (13. O-O $11 {is more appropriate.}) 13... Rd8 14. Ne4 (14. Qb3 $11 {keeps the balance.}) 14... b5 $1 $17 15. Qc2 Bb7 16. h4 c4 (16... Rac8 {simplifies} 17. Kb1 Nb6 18. Rxd8+ Rxd8 19. h5 Nc4) 17. Ng5 Nf8 18. Bxb7 Qxb7 19. Qe4 {Prevents b4.} Qc7 20. f5 (20. Kb1 $15) 20... exf5 21. Qxf5 Bxg5 22. Bxg5 Rxd1+ 23. Rxd1 h6 24. Bf4 {[%cal Oe5e6]} Rd8 {Inhibits e6.} (24... Ne6 $17 {And now ...Rc8 would win.} 25. Qe4 Rc8) 25. Rd6 Ne6 {Strongly threatening ...Rc8.} (25... c3 $5 {[%cal Rd8c8]} 26. Qd3 cxb2+ 27. Kxb2 Ne6 $15) 26. g4 $2 ({White should play} 26. Qe4 $15) 26... c3 $1 $19 {aiming for ...Rc8.} 27. g5 $2 (27. Rxd8+ Qxd8 28. bxc3) 27... hxg5 28. hxg5 cxb2+ $2 (28... Rc8 $19 {is more deadly.} 29. g6 cxb2+ 30. Kxb2 Qc3+ 31. Kb1 Qe1+ 32. Kb2 Qc3+ 33. Kb1 Qe1+ 34. Kb2 Qc3+) 29. Kxb2 $17 g6 30. Qd3 Rc8 (30... Nxf4 $2 31. Rxd8+ Kg7 32. Qd6 $18) (30... Kg7 $15 31. Rxd8 Qxd8) 31. Be3 (31. Rxe6 $1 $11 fxe6 32. Qxg6+ Kh8 33. Qh6+ (33. Qxe6 $2 Qc3+ 34. Kb1 Qe1+ 35. Kb2 Qxe2+ 36. Ka3 b4+ 37. Kxb4 Qb5+ 38. Ka3 Qa5+ 39. Kb3 Qc3+ 40. Ka4 Rc4+) 33... Kg8 34. Qxe6+ (34. Qg6+ Kh8 $11) 34... Kh8 35. Qf6+ Kg8 36. Qe6+ Kh8 37. Qf6+ Kg8 38. Qe6+) 31... b4 (31... Kg7 {feels hotter.} 32. Kb1 a5 33. Rd7 Qc6) 32. Bd2 ({White should try} 32. Kb1 $15) 32... Nc5 $19 33. Qc2 (33. Qb1 {was the only defense.}) 33... Qe7 $2 (33... Qa5 34. Kb1 Qc7 35. Qc4 $11 (35. Bxb4 $2 Qb7 $19)) (33... b3 $19 {and Black stays clearly on top. ( -> ...Na4+)} 34. Qd1 (34. Qc4 Na4+ 35. Ka3 Qxc4 36. axb3 Qxe2 37. e6 Nc3 38. Bxc3 Rxc3 39. Rd8+ Kg7 40. exf7 Kxf7 41. Rd4 Qe3 42. Rd7+ Ke6 43. Rg7 Rxb3+ 44. Ka2 Qd3) 34... Na4+ 35. Kb1 Qc5) 34. Bf4 (34. Rd5 $17 {is a better defense.} b3 35. axb3 Na4+ 36. bxa4 Rxc2+ 37. Kxc2) 34... Qe8 {White must now prevent ...Na4+.} 35. Kb1 $2 (35. Qd1) 35... Na4 $2 (35... Nb7 $19 36. Qd3 Nxd6 37. exd6 Qe6) 36. Qb3 $11 Nc3+ 37. Kb2 $2 {[%mdl 8192]} (37. Ka1 $11 {and White stays safe.} Rc6 38. Qxb4) 37... Nxe2 $4 {[%mdl 8192]} (37... Qb5 $19 {and all is fine.} 38. Ka1 Kg7) 38. Rxg6+ $18 (38. Qxb4 $2 Nxf4 39. Qa5 Qe7 $19) 38... Kh7 {[#]} 39. Rh6+ $1 (39. Rxa6 $2 Nxf4 40. Qe3 Qb5 $19) 39... Kg7 {[#]} 40. Qd3 $1 {Qh7+ would kill now.} Nxf4 (40... Rc6 41. e6) 41. Qh7+ {White mates.} (41. Qxa6 {leads to mate.} Qxe5+ 42. Kb3 Rc3+ 43. Ka4 Ra3+ 44. Kxb4 Nd5+ 45. Kc5 Nc7+ 46. Kb6 Rxa6+ 47. Kb7 Qb5+) 41... Kf8 42. Qh8+ Ke7 43. Qf6+ Kd7 44. Qd6# {Weighted Error Value: White=0.63/Black=0.59} 1-0

[Event "Benidorm Open-A 2022"]
[Site "Benidorm"]
[Date "2022.12.09"]
[Round "8.26"]
[White "Troffiguer, Olivier"]
[Black "Rodriguez Garcia, Manuel Francisco"]
[Result "0-1"]
[ECO "A15"]
[WhiteElo "2007"]
[BlackElo "2135"]
[Annotator "TA"]
[PlyCount "126"]
[EventDate "2022.12.03"]
[EventType "swiss"]
[EventCountry "ESP"]
[SourceTitle "playchess.com"]
[Source "ChessBase"]
[SourceQuality "1"]
[TimeControl "5400+30"]

{[%evp 16,126,-12,-16,-11,-27,-38,-33,-23,-37,-35,-35,-27,-33,-29,-52,-43,-69,-62,-60,-63,-85,-39,-37,-41,-42,-35,-62,-60,-82,-32,-43,-43,-44,-33,-37,-30,-38,-8,-9,-10,-68,-10,-13,-25,-27,-16,-16,0,0,27,12,10,7,22,-12,-18,-9,-9,-10,-13,-38,-38,-38,-45,-69,-59,-143,-141,-177,-159,-519,-34,-43,-34,-233,-238,-416,-108,-127,-115,-207,-182,-284,-298,-701,-387,-361,-364,-270,-242,-208,-187,-154,-124,-144,-8,-55,-44,-31,-19,-57,0,0,59,-415,-46,-740,-691,-4930,-4914,-5587,-1815]} 1. Nf3 Nf6 2. c4 g6 3. b3 Bg7 4. Bb2 c5 5. e3 O-O 6. Be2 Nc6 7. O-O d5 8. cxd5 Qxd5 9. Nc3 Qf5 {A30: Symmetrical English: Double Fianchetto and Hedgehog.} 10. Qb1 Rd8 (10... Qxb1 {simplifies} 11. Raxb1 Rd8 12. Rfd1 b6) 11. Rd1 b6 {Black is slightly better.} (11... Qxb1 {simplifies} 12. Raxb1 b6 13. h3 Ne8) 12. h3 Qxb1 13. Raxb1 {[#]} Bf5 $146 ({Predecessor:} 13... Bb7 14. d3 Rac8 15. Ne1 e6 16. Bf3 Rd7 17. Kf1 Rcd8 18. Ke2 Nb4 19. Bxb7 Rxb7 {½-½ (102) Leenhouts,K (2443)-Arutinian,D (2552) Amsterdam 2019}) 14. d3 h5 15. Ng5 Nb4 16. e4 Bc8 17. a3 Nc6 18. Nf3 {[%cal Ob3b4]} Ne8 (18... Ba6 $17) 19. Nd5 $15 e6 {Inhibits d4.} 20. Ne3 Nc7 {[%cal Be8c7,Bc7b5,Bb5d4][%mdl 32]} 21. Bxg7 Kxg7 22. b4 cxb4 (22... Nd4 $17 23. Kf1 Ncb5) 23. axb4 Nb5 24. Rdc1 {Inhibits Nc3.} Bb7 25. Nc4 Rac8 26. Bf1 Ncd4 27. Nxd4 Nxd4 28. Ne5 (28. f4 $11) 28... Rxc1 (28... f6 $15 29. Rxc8 Bxc8) 29. Rxc1 $11 {aiming for Rc7.} Rc8 {Prevents Rc7.} 30. Ra1 Ra8 31. Nc4 {Inhibits a5.} Kf6 32. f4 Ke7 33. Kf2 f6 34. Ra2 b5 {Inhibits g4.} 35. Na5 (35. Ke3 $5 {[%cal Rc4a5]} Nc6 36. Na5 Nxa5 37. Rxa5 $11) 35... Bc6 36. Ke3 e5 37. fxe5 fxe5 38. Be2 Bd7 39. Bd1 Be6 40. Rb2 Rc8 $1 41. Nb3 (41. Kd2 $15) 41... Bxb3 $17 {Black is more active.} 42. Bxb3 {[%mdl 4096] Endgame [#] KRB-KRN} Rc1 $1 {Prevents Bd1.} 43. Bd5 $2 (43. h4 $17) 43... Ra1 $2 (43... Rc2 $19 44. Rxc2 (44. Ra2 $2 Rxa2 45. Bxa2 Nc2+ 46. Kd2 Nxb4 $19) 44... Nxc2+ 45. Kd2 Nxb4) 44. Rf2 $15 Ra4 45. Rb2 (45. Rf7+ $15 Ke8 46. Rg7) 45... Rxb4 $19 46. Rf2 (46. Ra2) 46... Ra4 $2 (46... a5 $19 {and Black stays clearly on top.} 47. Bf7 Rb1) 47. Rf7+ $17 Ke8 48. Rb7 (48. Rg7 $17) 48... a5 $19 {Strongly threatening ...Rb4.} 49. Bf7+ (49. Rb8+ $142 Ke7 50. Rb7+ Kf8 51. Rb8+ Ke7 52. Rb7+ Kd6 53. Rb6+ Kc5 54. Rxg6) 49... Kd8 50. Bxg6 $2 (50. g4 Ra1 51. gxh5) 50... h4 51. Bf5 Ra2 {[%csl Gd4][%cal Ra2e2]} 52. Bg4 {Against Re2+} b4 {Hoping for ...b3.} (52... Rxg2 $2 53. Rd7+ Ke8 54. Rd5 Rg3+ 55. Kf2 $19) 53. Rd7+ Ke8 54. Rd5 Nc2+ 55. Kd2 b3 (55... Nd4+ 56. Ke3 Nc2+ 57. Kd2 Nd4+ 58. Ke3 $17) (55... Na3+ $17 56. Ke3 Nc2+ 57. Kd2 Nd4+ 58. Ke3 Nc2+) 56. Rxe5+ (56. Kc3 $1 $11 Na1 57. Bd1 (57. Rxe5+ Kd8 $11)) 56... Kd8 $15 57. Kc3 a4 {With the idea ...Ne1.} 58. Be6 {[%cal Oe6b3] Threatens to win with Bxb3!} Na1 (58... Ne1 $15 59. Ra5 Nxg2) 59. Rb5 Rc2+ ({Black should play} 59... Rxg2 $11 60. e5 Nc2) 60. Kd4 $2 {[%mdl 8192]} (60. Kb4 $1 $14 {was forced to keep a grip.}) 60... Rxg2 $2 ({Black should try} 60... b2 $19 61. Ba2 (61. Rb8+ $2 Kc7 $19) 61... Nb3+ 62. Ke5 Kc7) 61. Kd5 $2 {[%mdl 8192] [#]} (61. Rb8+ $15 Kc7 62. Ra8 (62. Rb5 $2 b2 $19)) 61... Kc7 $1 $19 {White must now prevent ...b2. Black is clearly winning.} 62. Kc4 b2 63. Kc3 {Inhibits Nb3.} Nb3 {Weighted Error Value: White=0.79/Black=0.48} (63... Rc2+ $142 64. Kd4 Nb3+ 65. Ke5 b1=Q) 0-1

[Event "Benidorm Open-A 2022"]
[Site "Benidorm"]
[Date "2022.12.09"]
[Round "8.27"]
[White "Parramon Ros, Francesc"]
[Black "Perez Candelario, Matias"]
[Result "0-1"]
[ECO "C24"]
[WhiteElo "2003"]
[BlackElo "2009"]
[Annotator "TA"]
[PlyCount "64"]
[EventDate "2022.12.03"]
[EventType "swiss"]
[EventCountry "ESP"]
[SourceTitle "playchess.com"]
[Source "ChessBase"]
[SourceQuality "1"]
[TimeControl "5400+30"]

{[%evp 15,64,43,48,7,8,0,0,-10,0,-8,0,-63,0,0,0,-5,0,-2,14,-29,-29,-28,-27,-194,-143,-226,-215,-244,-270,-242,-199,-228,-147,-150,-141,-243,-228,-233,-228,-247,-155,-414,-413,-1100,-1052,-1120,-1142,-29976,-29977,-29984,-29985]} 1. e4 e5 2. Bc4 Nc6 3. d3 Nf6 4. Nc3 h6 5. Nf3 Bb4 6. O-O O-O 7. Nd5 Ba5 8. c3 d6 9. h3 {C55: Two Knights: 4 d3, 4 d4 exd4 5 e5 and Max Lange Attack.} Nxd5 {[#]} 10. exd5 $146 ({Predecessor:} 10. Bxd5 Ne7 11. Bb3 c6 12. Be3 Bc7 13. Qd2 Kh7 14. Bc2 f5 15. exf5 Bxf5 16. Nh4 d5 17. Nxf5 Nxf5 {0-1 (27) Vujosevics,E (1431)-Hetesi,Z (1501) Budapest 2011}) 10... Ne7 11. d4 {The position is equal.} e4 12. Nh2 c6 13. dxc6 ({White should try} 13. f3 $1 $11) 13... d5 ({Black should play} 13... bxc6 $15 14. d5 Rb8) 14. cxb7 $11 Bxb7 15. Bb3 Bc7 $36 {[%mdl 2048] Black fights for an advantage.} 16. f4 f5 17. Qh5 Kh7 {[%mdl 1024] Black has compensation.} 18. Bd2 a5 19. a3 $2 {[#]} (19. Rf2 $11) 19... Rb8 (19... Ba6 $19 20. Rf2 Qb8) 20. Ba2 (20. Bc2 $17) 20... Ba6 $19 {[%csl LRb2,LRf1]} 21. Bc1 Bxf1 22. Nxf1 Qd6 23. g3 Rf6 {[%cal Bf8f6,Bf6b6,Bb6g6,Bg6g1][%mdl 32]} 24. Rb1 a4 {Black is more active.} 25. Be3 (25. Qe2 $17) 25... Qa6 {And now ...Rfb6 would win.} 26. Qd1 Rfb6 27. Bc1 Rg8 {[#] Hoping for ...g5.} 28. Kf2 $2 {Loses the game.} (28. h4 $17) 28... g5 29. b4 (29. fxg5 $142 hxg5 30. c4) 29... axb3 30. Rxb3 gxf4 31. gxf4 Rbg6 32. Rb2 Rg1 {Weighted Error Value: White=0.83/Black=0.15 (very precise)} 0-1

[Event "Benidorm Open-A 2022"]
[Site "Benidorm"]
[Date "2022.12.09"]
[Round "8.28"]
[White "Palomo Teruel, Xavier"]
[Black "Draghici Flutur, Gavril"]
[Result "1/2-1/2"]
[ECO "A25"]
[WhiteElo "2040"]
[BlackElo "2012"]
[Annotator "TA"]
[PlyCount "179"]
[EventDate "2022.12.03"]
[EventType "swiss"]
[EventCountry "ESP"]
[SourceTitle "playchess.com"]
[Source "ChessBase"]
[SourceQuality "1"]
[TimeControl "5400+30"]

{[%evp 9,179,6,21,16,20,13,17,8,8,0,16,14,46,31,33,29,36,31,83,82,80,75,83,91,120,92,94,25,133,139,149,44,120,71,65,73,66,0,0,0,0,-123,-125,-329,-51,-59,-30,-39,-28,-28,-28,-32,-32,-25,-21,-57,-55,-155,-163,-160,-162,-162,-162,-162,-162,-185,-176,-176,-176,-169,-131,-182,-109,-112,-31,-31,-31,-31,-31,-31,-31,-31,-16,-31,-16,-16,0,-233,-239,-225,-218,-347,-313,-322,-210,-330,-320,-300,-210,-210,-205,-205,-205,-191,-198,-222,-6,-12837,-539,-1062,-1221,-828,-568,-12843,-12842,-12841,0,-155,-155,-155,-155,-155,-155,-155,-155,-155,-155,-155,-155,-155,0,-155,0,-155,-155,-12842,-155,-155,0,-12842,0,-155,-155,-155,-155,-162,-167,-12846,-155,-155,-155,-155,-155,-155,-155,-155,-125,-155,-155,-155,-155,-155,0,-155,-155,-155,0,0,0,0,0,0]} 1. c4 e5 2. Nc3 Nc6 3. g3 g6 4. d3 Bg7 5. e4 Nge7 6. Bg2 {A25: English Opening vs King's Indian with ...Nc6 but without early d3.} O-O 7. Nge2 Nd4 8. Nxd4 exd4 9. Ne2 c6 {[#]} 10. Bd2 $146 ({Predecessor:} 10. O-O d5 11. exd5 cxd5 12. Nf4 dxc4 13. dxc4 Re8 14. Nd3 Nc6 15. Bf4 Bf5 16. Qd2 {1-0 (44) Von Bahr,O (2364)-Jonsson,M (2297) Sweden 2014}) 10... f5 11. b4 fxe4 12. dxe4 d6 13. Nf4 Qe8 (13... c5 $14) 14. O-O $16 Qf7 15. Rc1 Bd7 16. a4 {[%cal Ba2a4,Ba4a5][%mdl 32]} (16. c5 {looks sharper.} dxc5 17. bxc5 Qxa2 18. Ra1) 16... Kh8 17. a5 Rad8 18. Rc2 ({Better is} 18. Re1 $16) 18... b5 (18... c5 $11 {remains equal.}) 19. cxb5 c5 20. Qe2 (20. bxc5 $16 {aiming for c6.} Bxb5 21. cxd6) 20... Qe8 (20... Rb8 $1 $14) 21. bxc5 {White is more active.} (21. b6 $142) 21... Bxb5 22. Nd3 Nd5 {[%mdl 64]} 23. Rb1 (23. cxd6 $1 $14 Nc3 24. Bxc3 dxc3 25. e5) 23... Nc3 $11 24. Bxc3 dxc3 25. c6 (25. e5 $1 $11 {was the only way to keep the balance.}) 25... Qxc6 $17 26. Ne5 $2 Bxe5 $2 (26... dxe5 27. Rxb5 Rd2 28. Rxd2 cxd2 29. Rd5 Qc1+ 30. Bf1 $15) (26... Bxe2 $19 27. Nxc6 Bd3) 27. Qxb5 $15 Qa8 28. Rd1 Rb8 {Against f4} 29. Qd3 Qc6 30. f4 Qc5+ 31. Kh1 Bg7 32. Rdc1 {[%cal Oe4e5]} (32. e5 {simplifies} dxe5 33. Qxc3 Qxc3 34. Rxc3 exf4 35. Rc7) 32... Qxa5 33. e5 (33. Qxd6 $15 Rfd8 34. Qe7) 33... dxe5 $17 34. Qxc3 Qxc3 35. Rxc3 exf4 36. Rf3 fxg3 37. Rxf8+ Rxf8 38. hxg3 $19 {[%mdl 4096] Endgame KRB-KRB} Be5 39. Kh2 h5 40. Kh3 {Against h4} (40. Rc5 $17 Re8 41. Bc6) 40... Rb8 (40... g5 $19 {...g4+ is the strong threat.} 41. Rc5 g4+ 42. Kh2 Rf5) 41. Rc5 $17 Bf6 (41... Re8 $1 $17 42. g4 Bd6) 42. Rc6 Kg7 43. Rc7+ Kh6 44. Rxa7 Rb3 45. Bd5 Rd3 46. Be4 Re3 47. Ra6 $1 Kg7 48. Bd5 (48. Ra7+ $11 Kh6 49. Ra6) 48... Be5 $19 49. Re6 {[%cal Od5f3]} Rxg3+ 50. Kh4 (50. Kh2 {was the only defense.} Bf4 51. Kh1) 50... Rg4+ 51. Kh3 Bf6 52. Re8 (52. Re4 $142 Rg1 53. Kh2) 52... Rd4 53. Be6 Rd3+ 54. Kg2 Rd2+ 55. Kf3 g5 56. Rg8+ {[#]} Kh7 $1 57. Rf8 g4+ $2 (57... Kg6 $19 {And now ...Rd4 would win.} 58. Rg8+ Bg7) 58. Ke4 $2 {[%mdl 8192]} (58. Bxg4 $11 hxg4+ 59. Kxg4) 58... Bg7 (58... Re2+ $142 59. Kd5 Kg6 60. Rg8+ Bg7) 59. Bf5+ Kh6 60. Rc8 Kg5 61. Rc5 g3 62. Kf3 {[#]} h4 $2 (62... Kh4 $1 $19 63. Be4 Bd4 64. Rxh5+ Kxh5 65. Kxg3 Kg5 66. Kf3 Rf2+ 67. Kg3 Rf6 68. Bf3 Rf8 69. Bd1 Be5+ 70. Kg2 Kh4 71. Be2 Bd4 72. Bf3 Rf6 73. Kf1 Rxf3+ 74. Ke1 Kg3 75. Kd2 Rc3 76. Kd1 Kf2 77. Kd2 Kf3 78. Kd1 Ke3 79. Ke1 Rc1#) 63. Bg4+ $2 ({White must play} 63. Be4+ $1 $11 Kf6 64. Kg4) 63... Kf6 64. Bh3 Kf7 65. Kg4 Bf6 ({Not} 65... g2 66. Bxg2 Rxg2+ 67. Kxh4 $15) 66. Kf3 {Prevents g2.} Rf2+ 67. Kg4 Rb2 {Hoping for ...g2.} ({Weaker is} 67... g2 68. Rc1 $11) 68. Kf3 {Inhibits g2.} Rb3+ 69. Kg2 Rb2+ 70. Kf3 Rf2+ 71. Kg4 $1 Kg6 {White must now prevent ...g2.} ({Stronger than} 71... g2 72. Rc1 $11) 72. Rc6 $2 (72. Rb5 $17) 72... Rh2 $2 (72... g2 $19 {is more deadly.} 73. Rc1 Bg5 74. Rc6+ Kg7 75. Bxg2 Rxg2+ 76. Kf3 Rg3+ 77. Ke4 h3) 73. Rc1 $17 Rf2 $2 (73... Re2 $17 74. Rg1 Re4+ 75. Kf3 Ra4) 74. Rc6 $1 $19 Kf7 $2 (74... g2 $19 75. Rc1 Bg5 76. Rc6+ Kg7 77. Bxg2 Rxg2+ 78. Kf5 h3) 75. Rb6 $2 (75. Rc5 $1 $11 Rd2 76. Rc1) 75... Rh2 76. Rb1 Ra2 77. Kf3 Ra3+ 78. Kg4 $2 (78. Kg2) 78... Kg6 $2 (78... g2 $1 $19 79. Rg1 Rg3+ 80. Kf4 Rxh3 81. Rxg2 Rg3) 79. Bg2 $17 Ra4+ 80. Kh3 Kf5 81. Rf1+ Ke5 82. Re1+ Kd6 83. Rd1+ Ke7 84. Re1+ Kf7 85. Rf1 Kg6 $2 (85... Rb4 $17 86. Rd1 Kg6) 86. Re1 $2 (86. Rb1 $1 $11) 86... Rb4 87. Rb1 Rxb1 $2 (87... Rd4 $17 88. Rb6 Kf5) 88. Be4+ $11 {The position is equal.} Kg5 89. Bxb1 Kf4 90. Bd3 {Weighted Error Value: White=0.51/Black=0.52} 1/2-1/2

[Event "Benidorm Open-A 2022"]
[Site "Benidorm"]
[Date "2022.12.09"]
[Round "8.29"]
[White "Slagboom, Leandro"]
[Black "Clemente Llamero, Roberto"]
[Result "1-0"]
[ECO "B12"]
[WhiteElo "2147"]
[BlackElo "1955"]
[Annotator "TA"]
[PlyCount "49"]
[EventDate "2022.12.03"]
[EventType "swiss"]
[EventCountry "ESP"]
[SourceTitle "playchess.com"]
[Source "ChessBase"]
[SourceQuality "1"]
[TimeControl "5400+30"]

{[%evp 9,49,-14,26,33,29,25,37,-3,0,0,21,12,10,0,0,0,0,0,0,0,0,-10,-4,-24,-21,-52,-45,-45,-13,-14,0,0,0,0,0,0,0,0,452,438,733,505]} 1. e4 c6 2. d4 d5 3. f3 dxe4 4. fxe4 e5 5. Nf3 Bg4 6. c3 {B12: Caro-Kann: Advance Variation.} Nd7 7. Bd3 (7. dxe5 Bc5 $15) 7... Bd6 8. Na3 {White is slightly better.} Bxa3 9. bxa3 Ngf6 10. O-O (10. dxe5 Nxe5 11. Be2 Qxd1+ 12. Kxd1 O-O-O+ 13. Kc2 Rhe8 $17) 10... O-O 11. Rb1 (11. dxe5 Nxe5 12. Bc2 Qa5 $17) 11... Re8 {[#]} 12. Rxb7 $146 ({Predecessor:} 12. h3 Bh5 13. Rxb7 exd4 14. cxd4 Nxe4 15. Qc2 Ndf6 16. Bb2 Ng3 17. Rf2 Nge4 18. Rf1 {½-½ (71) Mosadeghpour,M (2486)-Asadli,V (2585) Dhaka 2021}) 12... exd4 13. cxd4 {[#] Black must now prevent e5.} (13. Qb3 Be6 14. Qc2 Nc5 15. cxd4 Nxb7 $17) 13... Nxe4 14. Bf4 Ndf6 15. Qb3 Be6 16. Qc2 {[%csl LRc6,LRe4]} Bd5 17. Rfb1 h6 18. Bc4 Nd6 {Pair of Knights!} (18... Bxc4 {simplifies} 19. Qxc4 Qd5 20. Qxd5 Nxd5 21. Bg3 a6) 19. Bxd5 Nxd5 20. Bxd6 {Dancing on a razor blade.} Qxd6 21. Ne5 Qxa3 22. Qf5 $40 {[%mdl 128] White has some attack.} ({Much worse is} 22. Nxc6 Rac8 23. Qf5 (23. Rxa7 $2 {perishes.} Qxa7 24. Nxa7 Rxc2 $19) (23. Qf2 f6 $17) 23... Qe3+ 24. Kf1 {[#]} (24. Kh1 $2 Qe1+ 25. Qf1 Qxf1+ 26. Rxf1 Rxc6 $19) 24... Rc7 $1 25. Rxc7 Nxc7 $15) (22. Nxf7 $2 Qe3+ 23. Qf2 Qxf2+ 24. Kxf2 Rf8 $19) 22... Qe3+ $1 23. Kh1 Nf6 $2 {[%mdl 8192]} (23... Qf4 $11 24. Rxf7 (24. Qxf7+ Qxf7 25. Nxf7 Nc3 $15) 24... Qxf5 25. Rxf5 Rab8 26. Rxb8 Rxb8) 24. Rxf7 $18 Qe4 (24... Qg5 $142 25. Qxg5 hxg5) 25. Rxf6 {Weighted Error Value: White=0.07 (flawless) /Black=0.35} 1-0